bitfinex/quotes_ETHUSD_20220117
["timestamp","ask_amount","ask_price","bid_price","bid_amount"]
[1642417345928,3.22342601,3275.7,3275.5,0.4325507]
[1642417346128,3.22342601,3275.7,3275.6,0.00958228]
[1642417346328,3.27745296,3275.7,3275.6,0.12638228]
[1642417346528,3.27745296,3275.7,3275.6,0.12798228]
[1642417346728,3.27745296,3275.7,3275.6,0.00958228]
[1642417347328,3.33147991,3275.7,3275.6,0.00958228]
[1642417347982,3.33147991,3275.7,3275.5,0.0101507]
[1642417348986,3.63147991,3275.7,3275.5,0.0101507]
[1642417349382,3.68550686,3275.7,3275.4,0.01071912]
[1642417349582,3.88737991,3275.7,3275.2,0.01185597]
[1642417349782,3.88737991,3275.7,3275.1,0.01242439]
[1642417350086,3.88737991,3275.7,3275.0,0.01299282]
[1642417350087,0.7632,3275.6,3275.0,0.01299282]
[1642417350486,0.3,3275.5,3274.9,0.01356124]
[1642417350685,1.81722695,3275.6,3274.8,0.01412966]
[1642417351384,1.51854739,3275.5,3274.8,0.01412966]
[1642417351648,0.3,3275.4,3274.8,0.01412966]
[1642417352128,2.91429893,3275.4,3274.8,0.01412966]
[1642417352328,4.07229893,3275.4,3274.8,0.01412966]
[1642417352628,1.3453373,3274.6,3274.3,0.01697178]
[1642417352828,0.76331,3275.1,3274.3,0.13297178]
[1642417353030,1.4327,3275.0,3274.3,0.13297178]
[1642417353226,1.4327,3275.0,3274.4,0.01640336]
[1642417353628,1.4327,3275.0,3274.2,0.0175402]
[1642417353829,1.25506702,3274.6,3274.2,0.1391402]
[1642417354030,1.4327,3275.0,3274.2,0.1399402]
[1642417354230,1.4327,3275.0,3274.2,0.08934483]
[1642417354432,0.00341054,3274.9,3274.2,0.1232]
[1642417354631,0.00341054,3274.9,3274.3,0.1192]
[1642417354831,0.00284212,3274.8,3274.2,0.1232]
[1642417355033,1.35302956,3274.8,3274.2,0.1224]
[1642417355232,0.00227369,3274.7,3274.2,0.1232]
[1642417355484,0.00227369,3274.7,3274.1,0.1192]
[1642417355685,0.00170527,3274.6,3274.1,0.1184]
[1642417355885,0.00170527,3274.6,3274.1,0.1168]
[1642417356089,0.00113685,3274.5,3274.1,0.1176]
[1642417356285,0.00113685,3274.5,3274.1,0.1192]
[1642417356485,0.00227369,3274.7,3274.2,0.1152]
[1642417356686,0.00227369,3274.7,3274.2,0.1144]
[1642417356886,0.00170527,3274.6,3274.1,0.12]
[1642417357085,0.00170527,3274.6,3274.1,0.1216]
[1642417357285,0.00113685,3274.5,3274.2,0.0079658]
[1642417357486,0.00113685,3274.5,3274.1,0.1184]
[1642417357686,0.00113685,3274.5,3274.1,0.1216]
[1642417357886,0.00113685,3274.5,3274.1,0.89051]
[1642417358086,0.00113685,3274.5,3274.2,2.62117343]
[1642417358286,0.00113685,3274.5,3274.2,2.62037343]
[1642417358486,0.00113685,3274.5,3274.3,1.124]
[1642417358688,0.00113685,3274.5,3274.3,1.1248]
[1642417358888,0.00113685,3274.5,3274.4,0.12]
[1642417359137,0.00113685,3274.5,3274.4,0.9144]
[1642417359327,0.00113685,3274.5,3274.4,0.4168]
[1642417359527,0.00113685,3274.5,3274.4,0.4176]
[1642417360129,0.00113685,3274.5,3274.4,0.4168]
[1642417360330,0.00113685,3274.5,3274.4,0.4176]
[1642417360530,0.00113685,3274.5,3274.4,0.416]
[1642417360728,0.00113685,3274.5,3274.4,0.4152]
[1642417360930,0.00113685,3274.5,3274.4,0.3]
[1642417361130,0.00113685,3274.5,3274.2,0.4232]
[1642417361333,0.00113685,3274.5,3274.2,0.1216]
[1642417361531,0.00113685,3274.5,3274.3,0.1176]
[1642417361931,0.00113685,3274.5,3274.2,0.1224]
[1642417362131,0.00113685,3274.5,3274.2,0.1248]
[1642417362330,0.00113685,3274.5,3274.2,0.1264]
[1642417362533,0.00113685,3274.5,3274.3,0.1216]
[1642417362732,0.00113685,3274.5,3274.3,0.116]
[1642417362979,0.00113685,3274.5,3274.1,1.616]
[1642417363179,0.00113685,3274.5,3274.2,0.1176]
[1642417363378,0.00113685,3274.5,3274.2,0.1144]
[1642417363578,0.00113685,3274.5,3274.2,0.116]
[1642417364178,0.00113685,3274.5,3274.2,0.1192]
[1642417364379,0.00113685,3274.5,3274.3,0.1144]
[1642417364580,0.00113685,3274.5,3274.2,0.1192]
[1642417364982,0.00113685,3274.5,3274.2,0.12]
[1642417365182,0.00113685,3274.5,3274.2,0.1184]
[1642417365482,0.00113685,3274.5,3274.2,0.1192]
[1642417365781,2.50113685,3274.5,3274.2,0.1152]
[1642417365981,2.50113685,3274.5,3274.1,0.8]
[1642417366181,2.50113685,3274.5,3274.1,0.9176]
[1642417366383,2.50113685,3274.5,3274.0,0.1184]
[1642417366647,2.50113685,3274.5,3273.8,0.1176]
[1642417366831,2.50113685,3274.5,3274.1,0.00113685]
[1642417367031,2.50113685,3274.5,3273.8,0.12]
[1642417367032,2.50113685,3274.5,3273.9,0.00227369]
[1642417367732,2.80113685,3274.5,3273.9,0.00227369]
[1642417368134,1.31484655,3274.1,3273.9,0.00227369]
[1642417368334,2.80113685,3274.5,3273.8,0.00284212]
[1642417368934,2.50113685,3274.5,3273.6,0.00397896]
[1642417369238,0.76358,3274.3,3273.6,0.00397896]
[1642417369434,1.51722867,3274.3,3273.6,0.12237896]
[1642417369835,1.51722867,3274.3,3273.7,0.00341054]
[1642417370682,1.51722867,3274.3,3273.6,0.11837896]
[1642417370883,1.51722867,3274.3,3273.6,0.11917896]
[1642417371082,2.50113685,3274.5,3273.7,0.00341054]
[1642417371888,2.80113685,3274.5,3273.7,0.00341054]
[1642417372084,2.80113685,3274.5,3273.7,0.12101054]
[1642417372284,0.02309125,3274.3,3273.7,0.00341054]
[1642417372486,0.02309125,3274.3,3273.8,0.00284212]
[1642417372689,0.02309125,3274.3,3273.7,0.00341054]
[1642417373087,0.78667125,3274.3,3273.7,0.00341054]
[1642417374139,1.33056655,3274.0,3273.7,0.00341054]
[1642417374628,0.78667125,3274.3,3273.7,0.00341054]
[1642417374828,0.02309125,3274.3,3273.7,0.00341054]
[1642417375028,0.02309125,3274.3,3273.7,0.12021054]
[1642417375228,0.02309125,3274.3,3273.7,0.06538359]
[1642417375428,0.02309125,3274.3,3273.5,0.1264]
[1642417375629,0.00284212,3274.2,3273.5,0.89066]
[1642417375832,0.00284212,3274.2,3273.6,0.1224]
[1642417376028,0.02309125,3274.3,3273.6,0.1232]
[1642417376029,0.00227369,3274.1,3273.6,0.1232]
[1642417376228,0.00227369,3274.1,3273.6,0.1184]
[1642417376529,0.00170527,3274.0,3273.6,0.116]
[1642417376729,0.00170527,3274.0,3273.5,0.1224]
[1642417376934,0.00113685,3273.9,3273.5,0.1232]
[1642417377129,0.00113685,3273.9,3273.6,0.1192]
[1642417377329,0.02309024,3274.2,3273.6,0.1192]
[1642417377330,0.02593236,3274.2,3273.6,0.1192]
[1642417377532,0.02593236,3274.2,3273.5,0.1248]
[1642417377729,0.00227369,3274.1,3273.5,0.1256]
[1642417378181,0.00170527,3274.0,3273.5,0.1256]
[1642417378581,0.00113685,3273.9,3273.5,0.1248]
[1642417378985,0.00227369,3274.1,3273.5,0.124]
[1642417379182,0.00227369,3274.1,3273.5,0.1232]
[1642417379382,0.00170527,3274.0,3273.5,0.1232]
[1642417379686,0.00227369,3274.1,3273.5,0.1232]
[1642417379885,0.00113685,3273.9,3273.5,2.15313783]
[1642417380084,0.02309024,3274.2,3273.5,2.15313783]
[1642417380085,0.00170527,3274.0,3273.6,0.438]
[1642417380286,0.00227369,3274.1,3273.6,0.8756]
[1642417380484,0.02309024,3274.2,3273.6,0.8756]
[1642417380485,0.00113685,3273.9,3273.7,0.14]
[1642417380684,0.02309024,3274.2,3274.0,1.26219315]
[1642417380885,0.02309024,3274.2,3274.0,1.20133]
[1642417381084,0.00113684,3274.1,3274.0,1.50133]
[1642417381288,0.00113684,3274.1,3274.0,1.20133]
[1642417381486,0.00113684,3274.1,3274.0,0.8548]
[1642417381744,0.00113684,3274.1,3274.0,0.738]
[1642417382538,0.00113684,3274.1,3274.0,0.438]
[1642417382938,0.00113684,3274.1,3274.0,0.738]
[1642417383538,0.00113684,3274.1,3274.0,0.8596]
[1642417383738,0.00113684,3274.1,3274.0,0.738]
[1642417384941,0.00113684,3274.1,3274.0,0.8564]
[1642417385139,0.00113684,3274.1,3274.0,0.738]
[1642417385381,0.00113684,3274.1,3274.0,0.73564538]
[1642417386284,0.00113684,3274.1,3274.0,0.85004538]
[1642417386485,0.00113684,3274.1,3274.0,0.85804538]
[1642417386684,0.00113684,3274.1,3274.0,0.85724538]
[1642417386885,0.00113684,3274.1,3274.0,0.85804538]
[1642417387184,0.00113684,3274.1,3274.0,1.61735538]
[1642417387688,0.00113684,3274.1,3274.0,0.85804538]
[1642417387886,0.00113684,3274.1,3274.0,0.85724538]
[1642417388086,0.00113684,3274.1,3274.0,0.73564538]
[1642417388286,0.00113684,3274.1,3274.0,0.85884538]
[1642417388485,0.00113684,3274.1,3274.0,0.85164538]
[1642417388887,0.00113684,3274.1,3274.0,0.85084538]
[1642417389138,0.00113684,3274.1,3274.0,1.61495538]
[1642417389332,0.00113684,3274.1,3274.0,1.61895538]
[1642417389531,0.00113684,3274.1,3274.0,1.61975538]
[1642417389931,0.00113684,3274.1,3274.0,1.61735538]
[1642417390133,0.00113684,3274.1,3274.0,1.61895538]
[1642417390336,0.00113684,3274.1,3274.0,1.61735538]
[1642417390536,0.00113684,3274.1,3274.0,1.61815538]
[1642417390734,0.00113684,3274.1,3274.0,1.61655538]
[1642417390937,0.00113684,3274.1,3274.0,1.61735538]
[1642417391134,0.00113684,3274.1,3274.0,1.62295538]
[1642417391335,0.00113684,3274.1,3274.0,1.61655538]
[1642417391535,0.00113684,3274.1,3274.0,0.85644538]
[1642417391736,0.00113684,3274.1,3274.0,0.85724538]
[1642417391936,0.00113684,3274.1,3274.0,0.85804538]
[1642417392135,0.00113684,3274.1,3274.0,0.85004538]
[1642417392337,0.00113684,3274.1,3274.0,0.73564538]
[1642417392536,0.00113684,3274.1,3274.0,0.85004538]
[1642417392738,0.00113684,3274.1,3274.0,0.85964538]
[1642417392983,0.00113684,3274.1,3274.0,0.85004538]
[1642417393180,0.00113684,3274.1,3274.0,0.73564538]
[1642417393482,0.00113684,3274.1,3274.0,0.85004538]
[1642417393682,0.00113684,3274.1,3274.0,0.73564538]
[1642417395181,0.00113684,3274.1,3274.0,0.85644538]
[1642417395379,0.00113684,3274.1,3274.0,0.85484538]
[1642417395584,0.00113684,3274.1,3274.0,0.85564538]
[1642417395781,0.00113684,3274.1,3274.0,1.62055538]
[1642417395982,0.00113684,3274.1,3274.0,1.61975538]
[1642417396184,0.00113684,3274.1,3274.0,1.62135538]
[1642417396384,0.00113684,3274.1,3274.0,1.56652843]
[1642417396638,0.00113684,3274.1,3274.0,1.56252843]
[1642417396832,0.00113684,3274.1,3274.0,1.56332843]
[1642417397032,0.00113684,3274.1,3274.0,1.56412843]
[1642417397232,0.00113684,3274.1,3274.0,1.56332843]
[1642417397433,0.00113684,3274.1,3274.0,1.56252843]
[1642417397632,0.00113684,3274.1,3274.0,1.56332843]
[1642417397833,0.00113684,3274.1,3274.0,1.56172843]
[1642417398034,0.00113684,3274.1,3274.0,1.56092843]
[1642417398235,0.00113684,3274.1,3274.0,1.56172843]
[1642417398433,0.00113684,3274.1,3274.0,1.56092843]
[1642417398633,0.00113684,3274.1,3274.0,1.56172843]
[1642417398833,0.00113684,3274.1,3274.0,1.56332843]
[1642417399034,0.00113684,3274.1,3274.0,1.56572843]
[1642417399334,0.00113684,3274.1,3274.0,1.56092843]
[1642417400135,0.00113684,3274.1,3274.0,1.56012843]
[1642417400785,0.00113684,3274.1,3274.0,1.44492843]
[1642417400981,0.00113684,3274.1,3274.0,1.56412843]
[1642417401182,0.00113684,3274.1,3274.0,2.56572843]
[1642417401382,0.00113684,3274.1,3274.0,2.56492843]
[1642417401582,0.00113684,3274.1,3274.0,2.56572843]
[1642417401782,0.00113684,3274.1,3274.0,2.56732843]
[1642417401982,0.00113684,3274.1,3274.0,1.56732843]
[1642417402283,0.00113684,3274.1,3274.0,2.56812843]
[1642417402483,0.00113684,3274.1,3274.0,1.56732843]
[1642417402685,0.00113684,3274.1,3274.0,2.56572843]
[1642417402885,0.00113684,3274.1,3274.0,1.56172843]
[1642417403085,0.00113684,3274.1,3274.0,2.56812843]
[1642417403288,0.00113684,3274.1,3274.0,2.56652843]
[1642417403484,0.00113684,3274.1,3274.0,0.80161843]
[1642417403684,0.00113684,3274.1,3274.0,1.79921843]
[1642417403885,0.00113684,3274.1,3274.0,0.80081843]
[1642417404140,0.00113684,3274.1,3274.0,1.80001843]
[1642417404333,0.00113684,3274.1,3274.0,0.80081843]
[1642417404533,0.00113684,3274.1,3274.0,1.80081843]
[1642417404733,0.00113684,3274.1,3274.0,0.80001843]
[1642417404934,0.00113684,3274.1,3274.0,1.80081843]
[1642417405135,0.00113684,3274.1,3274.0,0.80081843]
[1642417405335,0.00113684,3274.1,3274.0,0.80161843]
[1642417405535,0.00113684,3274.1,3274.0,0.68161843]
[1642417406335,0.00113684,3274.1,3274.0,0.67926381]
[1642417406535,0.00113684,3274.1,3274.0,0.79686381]
[1642417406837,0.00113684,3274.1,3274.0,0.79846381]
[1642417407137,0.00113684,3274.1,3274.0,0.79926381]
[1642417407534,0.00113684,3274.1,3274.0,0.67926381]
[1642417407735,0.00113684,3274.1,3274.0,0.79366381]
[1642417407991,0.00113684,3274.1,3274.0,0.79846381]
[1642417408192,0.00113684,3274.1,3274.0,0.67926381]
[1642417409694,0.00113684,3274.1,3274.0,0.438]
[1642417411099,0.02309024,3274.2,3274.0,0.438]
[1642417412134,1.49970476,3274.3,3274.0,0.438]
[1642417412433,0.00170527,3274.2,3274.0,0.438]
[1642417412635,0.00170527,3274.2,3273.9,1.49986315]
[1642417412835,0.00113684,3274.1,3273.9,1.79986315]
[1642417413036,0.00113684,3274.1,3273.9,0.79986315]
[1642417413638,0.00113684,3274.1,3273.9,0.3]
[1642417414038,0.00113684,3274.1,3273.9,0.49986315]
[1642417414438,0.00113684,3274.1,3273.9,1.49986315]
[1642417414637,0.00113684,3274.1,3273.9,1.61906315]
[1642417414838,0.00113684,3274.1,3273.9,1.61586315]
[1642417415038,0.00113684,3274.1,3273.9,1.61746315]
[1642417415237,0.00113684,3274.1,3273.9,1.49986315]
[1642417415487,0.00113684,3274.1,3273.9,1.0]
[1642417415688,0.00113684,3274.1,3273.8,0.3]
[1642417415888,0.00113684,3274.1,3273.7,1.91543581]
[1642417416189,0.00113684,3274.1,3273.8,0.1152]
[1642417416391,0.00113684,3274.1,3273.8,0.116]
[1642417416688,0.00113684,3274.1,3273.8,0.1176]
[1642417416888,0.00113684,3274.1,3273.8,0.61826315]
[1642417417087,0.00113684,3274.1,3273.8,1.61746315]
[1642417417388,0.02885351,3274.0,3273.8,1.82775305]
[1642417417590,0.02885351,3274.0,3273.8,1.82615305]
[1642417417791,0.02885351,3274.0,3273.8,1.06437305]
[1642417418996,0.02885351,3274.0,3273.9,0.79986315]
[1642417420835,0.02885351,3274.0,3273.9,0.91586315]
[1642417421037,0.02885351,3274.0,3273.9,0.91746315]
[1642417421238,0.02885351,3274.0,3273.9,0.79986315]
[1642417424684,0.02885351,3274.0,3273.9,0.3]
[1642417425085,0.02885351,3274.0,3273.7,3.29689896]
[1642417425485,1.44144197,3273.8,3273.7,1.49703581]
[1642417425689,1.44144197,3273.8,3273.5,1.49703581]
[1642417426287,2.50637539,3273.7,3273.5,1.49703581]
[1642417426488,1.44144197,3273.8,3273.5,1.49703581]
[1642417426738,2.48756466,3273.7,3273.5,1.49703581]
[1642417427038,1.44144197,3273.8,3273.5,1.49703581]
[1642417427234,2.61457054,3273.7,3273.2,3.0624]
[1642417427433,2.61457054,3273.7,3273.1,1.60988119]
[1642417427434,5.1222317,3273.7,3273.1,1.60988119]
[1642417427634,2.61457054,3273.7,3273.3,0.00341054]
[1642417427833,2.91457054,3273.7,3273.3,0.00341054]
[1642417428035,5.44913603,3273.7,3273.3,0.00341054]
[1642417428233,2.91457054,3273.7,3273.3,0.00341054]
[1642417429035,2.61457054,3273.6,3273.3,0.00341054]
[1642417430686,2.61457054,3273.6,3273.3,0.11781054]
[1642417430885,2.61457054,3273.6,3273.3,0.00341054]
[1642417431086,2.61457054,3273.6,3273.4,0.00284212]
[1642417431290,2.61457054,3273.7,3273.2,0.00397897]
[1642417431486,2.61457054,3273.7,3273.3,0.1176]
[1642417431687,2.61457054,3273.7,3273.2,0.12637897]
[1642417431888,2.61457054,3273.7,3273.4,0.00284212]
[1642417432292,2.61457054,3273.7,3273.2,0.00397897]
[1642417432489,2.61457054,3273.7,3273.3,0.1176]
[1642417432688,2.61457054,3273.7,3273.2,0.12637897]
[1642417432888,2.61457054,3273.7,3273.4,0.00284212]
[1642417433189,2.61457054,3273.7,3273.2,0.00397897]
[1642417433789,2.61457054,3273.7,3273.2,0.12717897]
[1642417434237,2.61457054,3273.7,3273.2,0.12557897]
[1642417434536,2.61457054,3273.7,3273.2,0.12157897]
[1642417434734,2.61457054,3273.7,3273.2,0.12237897]
[1642417434939,2.61457054,3273.7,3273.2,0.12877897]
[1642417435136,2.61457054,3273.7,3273.2,0.12957897]
[1642417435438,2.61457054,3273.7,3273.2,0.12877897]
[1642417435636,2.61457054,3273.7,3273.2,0.00397897]
[1642417436936,2.61457054,3273.7,3273.2,0.11837897]
[1642417437138,5.11457054,3273.7,3273.2,0.11917897]
[1642417437337,5.11457054,3273.7,3273.2,0.00397897]
[1642417438386,2.5,3273.7,3273.1,0.36675202]
[1642417438587,0.0022737,3273.6,3273.1,0.36835202]
[1642417438786,0.0022737,3273.6,3273.1,0.36755202]
[1642417438987,0.00170527,3273.5,3273.2,0.1144]
[1642417439187,0.00170527,3273.5,3273.2,0.1152]
[1642417439388,0.00113685,3273.4,3273.3,0.1144]
[1642417439589,0.00113685,3273.4,3273.3,0.1176]
[1642417439790,0.00113685,3273.4,3273.0,0.1336]
[1642417439990,0.00113685,3273.4,3273.0,0.1344]
[1642417440193,0.00113685,3273.4,3273.0,0.1368]
[1642417440389,0.00113685,3273.4,3273.0,0.1344]
[1642417440591,0.00113685,3273.4,3273.0,2.18514217]
[1642417440789,0.00113685,3273.4,3273.1,0.1264]
[1642417440989,0.00113685,3273.4,3273.1,0.128]
[1642417441191,0.00113685,3273.4,3273.0,0.1336]
[1642417441389,0.00113685,3273.4,3273.0,0.1352]
[1642417441655,0.00113685,3273.4,3273.1,0.1312]
[1642417441839,0.00113685,3273.4,3273.1,0.1304]
[1642417442039,0.00113685,3273.4,3273.1,0.1272]
[1642417442239,0.02998981,3273.4,3273.1,0.1248]
[1642417442440,0.02998981,3273.4,3273.1,0.1256]
[1642417442743,0.02998981,3273.4,3273.2,0.1216]
[1642417442941,0.02998981,3273.4,3273.2,0.1208]
[1642417443141,0.02998981,3273.4,3273.1,0.1264]
[1642417443341,0.02998981,3273.4,3273.1,0.1248]
[1642417443542,0.02998981,3273.4,3273.1,0.124]
[1642417443942,0.02998981,3273.4,3273.1,0.1248]
[1642417444141,0.02998981,3273.4,3273.1,0.1272]
[1642417444341,0.02998981,3273.4,3273.2,0.1264]
[1642417444541,0.02998981,3273.4,3273.2,0.1272]
[1642417444741,0.02998981,3273.4,3273.3,0.1224]
[1642417444942,0.02998981,3273.4,3273.1,3.41216077]
[1642417444943,0.02998981,3273.4,3273.2,0.12]
[1642417445142,0.02998981,3273.4,3273.2,0.1208]
[1642417445392,0.02998981,3273.4,3273.2,0.1192]
[1642417445590,0.02998981,3273.4,3273.2,0.1176]
[1642417445790,0.02998981,3273.4,3273.2,0.116]
[1642417445991,0.02998981,3273.4,3273.1,0.124]
[1642417446192,0.02998981,3273.4,3273.1,0.1224]
[1642417446393,0.02998981,3273.4,3273.1,0.1216]
[1642417446692,0.02998981,3273.4,3273.1,0.1232]
[1642417446891,0.02998981,3273.4,3273.2,0.1184]
[1642417447091,0.02998981,3273.4,3273.1,0.124]
[1642417447292,0.02998981,3273.4,3273.1,0.1248]
[1642417447491,0.02998981,3273.4,3273.3,0.1152]
[1642417447693,0.02998981,3273.4,3273.2,0.12]
[1642417447894,0.02998981,3273.4,3273.1,0.1272]
[1642417448093,0.02998981,3273.4,3273.1,0.1288]
[1642417448293,0.02998981,3273.4,3273.1,0.1296]
[1642417448493,0.02998981,3273.4,3273.1,0.12564538]
[1642417448694,0.02998981,3273.4,3273.1,0.1272]
[1642417448895,0.02998981,3273.4,3273.2,0.124]
[1642417449333,0.02998981,3273.4,3273.1,0.1288]
[1642417449532,0.02998981,3273.4,3273.1,2.17728689]
[1642417449933,0.02998981,3273.4,3273.1,0.128]
[1642417450132,0.02998981,3273.4,3273.2,0.1248]
[1642417450337,0.02998981,3273.4,3273.2,0.1264]
[1642417450537,0.02998981,3273.4,3273.2,0.1256]
[1642417450934,0.02998981,3273.4,3273.2,1.1248]
[1642417451335,0.02998981,3273.4,3273.2,0.1152]
[1642417451735,0.02998981,3273.4,3273.2,0.1168]
[1642417451936,0.02998981,3273.4,3273.1,2.19672188]
[1642417452136,0.02998981,3273.4,3273.1,3.20392188]
[1642417452336,0.02998981,3273.4,3273.2,0.1232]
[1642417452636,0.02998981,3273.4,3273.2,0.1224]
[1642417452883,0.02998981,3273.4,3273.2,0.1184]
[1642417453088,0.02998981,3273.4,3273.2,0.1208]
[1642417453286,0.02998981,3273.4,3273.2,0.1216]
[1642417453487,0.02998981,3273.4,3273.2,1.1208]
[1642417453888,0.02998981,3273.4,3273.2,1.1192]
[1642417454089,0.02998981,3273.4,3273.2,0.1184]
[1642417454289,0.02998981,3273.4,3273.3,0.1144]
[1642417454488,0.02998981,3273.4,3273.2,0.12]
[1642417454688,0.02998981,3273.4,3273.1,0.1248]
[1642417454888,0.02998981,3273.4,3273.3,0.1144]
[1642417455088,0.02998981,3273.4,3273.2,0.12]
[1642417455288,0.02998981,3273.4,3273.1,0.1256]
[1642417455692,0.02998981,3273.4,3273.1,0.124]
[1642417456389,0.02998981,3273.4,3273.1,0.1232]
[1642417456642,37.1428,3273.0,3272.9,1.71316315]
[1642417456834,37.1428,3273.0,3272.9,0.93786315]
[1642417457033,37.1428,3273.0,3272.9,1.06836842]
[1642417457532,37.1428,3273.0,3272.9,1.07236842]
[1642417457733,37.1428,3273.0,3272.9,3.16887657]
[1642417457933,37.1428,3273.0,3272.9,3.87444283]
[1642417458134,37.1428,3273.0,3272.9,1.84073842]
[1642417458338,37.1428,3273.0,3272.9,3.13673842]
[1642417458536,37.1428,3273.0,3272.9,3.13433842]
[1642417458937,37.1428,3273.0,3272.9,2.36196842]
[1642417459136,37.1428,3273.0,3272.9,1.36516842]
[1642417459339,37.1428,3273.0,3272.9,2.36596842]
[1642417459537,37.1428,3273.0,3272.9,1.31194147]
[1642417459937,37.1428,3273.0,3272.9,1.31274147]
[1642417460137,37.1428,3273.0,3272.9,1.31514147]
[1642417460387,37.1428,3273.0,3272.9,0.81207832]
[1642417460587,37.1428,3273.0,3272.9,0.81127832]
[1642417460787,37.1428,3273.0,3272.9,0.80647832]
[1642417460993,37.1428,3273.0,3272.9,0.80567832]
[1642417461287,37.1428,3273.0,3272.9,0.80807832]
[1642417461488,37.1428,3273.0,3272.9,0.80727832]
[1642417461889,37.1428,3273.0,3272.9,0.80807832]
[1642417462088,37.1428,3273.0,3272.9,0.80967832]
[1642417462290,37.1428,3273.0,3272.9,0.80807832]
[1642417462491,37.1428,3273.0,3272.9,0.80967832]
[1642417462691,37.1428,3273.0,3272.9,0.80807832]
[1642417462892,37.1428,3273.0,3272.9,0.80887832]
[1642417463091,37.1428,3273.0,3272.9,0.81127832]
[1642417463291,37.1428,3273.0,3272.9,0.80887832]
[1642417463692,37.1428,3273.0,3272.9,0.80967832]
[1642417464335,37.1428,3273.0,3272.9,0.81047832]
[1642417464735,37.1428,3273.0,3272.9,0.80887832]
[1642417464938,37.1428,3273.0,3272.9,0.81047832]
[1642417465137,37.1428,3273.0,3272.9,3.19723334]
[1642417465338,37.1428,3273.0,3272.9,17.67839334]
[1642417465537,37.1428,3273.0,3272.9,16.29323832]
[1642417465738,37.1428,3273.0,3272.9,16.29483832]
[1642417465939,36.64293685,3273.0,3272.9,2.59563832]
[1642417466143,36.64293685,3273.0,3272.9,8.05004342]
[1642417466340,36.14293685,3273.0,3272.9,8.35004342]
[1642417466541,36.14293685,3273.0,3272.9,8.04924342]
[1642417466740,36.14293685,3273.0,3272.9,8.04844342]
[1642417466941,35.64293685,3273.0,3272.9,8.04924342]
[1642417467341,30.95921504,3273.0,3272.9,8.05004342]
[1642417467542,30.95921504,3273.0,3272.9,8.04924342]
[1642417467741,30.92221504,3273.0,3272.9,4.98319334]
[1642417467984,0.02885026,3273.1,3272.9,4.98399334]
[1642417468184,0.02885026,3273.1,3273.0,3.05275454]
[1642417468385,0.02885026,3273.1,3273.0,3.63029139]
[1642417468587,0.02885026,3273.1,3273.0,4.09409139]
[1642417468790,2.52885026,3273.1,3273.0,3.63029139]
[1642417468989,2.52885026,3273.1,3273.0,3.63349139]
[1642417469193,2.02885026,3273.1,3273.0,3.63429139]
[1642417469390,2.02885026,3273.1,3273.0,3.63029139]
[1642417469591,2.02885026,3273.1,3273.0,3.62793677]
[1642417470091,2.00085026,3273.1,3273.0,3.63033677]
[1642417470293,2.00085026,3273.1,3273.0,3.62953677]
[1642417470491,1.52885026,3273.1,3273.0,3.63033677]
[1642417470693,1.2239,3274.2,3273.3,0.7634279]
[1642417470893,1.2239,3274.2,3273.5,0.76346]
[1642417471100,0.00454739,3274.0,3273.5,1.06346]
[1642417471301,0.00454739,3274.0,3273.5,1.18186]
[1642417471493,0.00397897,3273.9,3273.5,1.18026]
[1642417471757,0.00397897,3273.9,3273.5,0.416]
[1642417471952,0.00341054,3273.8,3273.5,0.416]
[1642417472151,0.00341054,3273.8,3273.4,0.1216]
[1642417472350,0.00284212,3273.7,3273.4,0.1216]
[1642417472550,0.00284212,3273.7,3273.4,0.1208]
[1642417472751,0.0022737,3273.6,3273.4,0.12]
[1642417472951,0.0022737,3273.6,3273.4,0.1216]
[1642417473151,0.00170527,3273.5,3273.4,0.1216]
[1642417473352,0.00170527,3273.5,3273.4,0.1224]
[1642417473754,0.00170527,3273.5,3273.4,0.1216]
[1642417473957,0.00170527,3273.5,3273.4,0.1224]
[1642417474353,0.00170527,3273.5,3273.4,0.1232]
[1642417474556,0.00170527,3273.5,3273.4,0.124]
[1642417474955,0.00170527,3273.5,3273.4,0.1224]
[1642417475390,0.00170527,3273.5,3273.4,0.1232]
[1642417475792,0.00170527,3273.5,3273.4,0.1224]
[1642417475992,0.00170527,3273.5,3273.4,0.12]
[1642417476192,0.00170527,3273.5,3273.4,0.116]
[1642417476793,0.00170527,3273.5,3273.4,0.1168]
[1642417477193,0.00170527,3273.5,3273.4,0.1176]
[1642417477393,0.00170527,3273.5,3273.4,0.1168]
[1642417477595,0.00170527,3273.5,3273.4,0.1176]
[1642417477793,0.00170527,3273.5,3273.4,0.1184]
[1642417478395,0.00170527,3273.5,3273.4,0.1192]
[1642417478995,0.00170527,3273.5,3273.4,0.12]
[1642417479239,0.00170527,3273.5,3273.4,0.1192]
[1642417479637,0.00170527,3273.5,3273.4,0.1184]
[1642417480438,0.00170527,3273.5,3273.4,0.06437305]
[1642417480735,0.00170527,3273.5,3273.4,0.1192]
[1642417481535,0.00170527,3273.5,3273.4,0.12]
[1642417481737,0.00170527,3273.5,3273.4,0.1192]
[1642417481940,0.00170527,3273.5,3273.4,0.1208]
[1642417482236,0.00170527,3273.5,3273.4,0.12]
[1642417482436,0.00170527,3273.5,3273.4,0.1208]
[1642417482736,0.00170527,3273.5,3273.4,0.12]
[1642417482992,0.00170527,3273.5,3273.4,0.1176]
[1642417483390,0.00170527,3273.5,3273.4,0.116]
[1642417483789,0.00170527,3273.5,3273.4,0.1168]
[1642417483990,0.00170527,3273.5,3273.4,0.1152]
[1642417484596,0.00170527,3273.5,3273.4,0.1168]
[1642417484993,0.00170527,3273.5,3273.4,0.116]
[1642417485196,0.00170527,3273.5,3273.0,2.72413685]
[1642417485197,0.00170527,3273.5,3273.2,0.1176]
[1642417485396,0.00170527,3273.5,3273.0,0.00113685]
[1642417485397,0.01226395,3273.4,3273.0,0.00113685]
[1642417485593,0.00113685,3273.4,3273.0,0.50113685]
[1642417485794,0.00113685,3273.4,3273.0,0.00113685]
[1642417486495,1.06486685,3273.4,3273.0,0.00113685]
[1642417487144,1.06486685,3273.4,3272.8,0.11747369]
[1642417487541,1.06486685,3273.4,3272.8,0.11827369]
[1642417487743,1.06486685,3273.4,3272.8,0.11907369]
[1642417487941,2.6148017,3273.3,3272.8,0.12387369]
[1642417488341,2.6148017,3273.3,3272.8,0.13907369]
[1642417488544,2.6148017,3273.3,3272.9,0.132]
[1642417488742,2.6148017,3273.3,3272.8,0.00227369]
[1642417488743,2.6148017,3273.3,3272.8,0.13987369]
[1642417488944,2.6148017,3273.3,3273.0,0.00113685]
[1642417490586,2.6148017,3273.3,3272.8,0.13238223]
[1642417490788,0.00113685,3273.2,3272.8,0.1304]